[Event "Early-Titled-Tuesday-Blitz-November-28-2023"]
[Site "Chess.com"]
[Date "2023.11.28"]
[Round "3"]
[White "Road2GM3000"]
[Black "FM-to-GM"]
[Result "0-1"]
[WhiteElo "2498"]
[BlackElo "2667"]
[TimeControl "180+1"]
[EndTime "8:29:06 PST"]
[Termination "FM-to-GM won by resignation"]

1. d4 {[%clk 0:03:00.9]} 1... d5 {[%clk 0:02:57]} 2. c4 {[%clk 0:03:01.3]} 2...
c6 {[%clk 0:02:57.2]} 3. Nc3 {[%clk 0:03:01.9]} 3... Nf6 {[%clk 0:02:57.9]} 4.
Nf3 {[%clk 0:03:01.6]} 4... dxc4 {[%clk 0:02:58]} 5. a4 {[%clk 0:03:01.7]} 5...
Bf5 {[%clk 0:02:57.7]} 6. Nh4 {[%clk 0:03:02.4]} 6... e6 {[%clk 0:02:54.3]} 7.
Nxf5 {[%clk 0:03:02.7]} 7... exf5 {[%clk 0:02:54.8]} 8. e3 {[%clk 0:03:03.4]}
8... Bd6 {[%clk 0:02:53.4]} 9. Bxc4 {[%clk 0:03:03.9]} 9... O-O {[%clk 0:02:54]}
10. Qc2 {[%clk 0:03:04.1]} 10... g6 {[%clk 0:02:53.8]} 11. O-O {[%clk
0:03:04.8]} 11... Qe7 {[%clk 0:02:52.1]} 12. b3 {[%clk 0:03:04]} 12... Re8
{[%clk 0:02:49.9]} 13. Bb2 {[%clk 0:03:04.3]} 13... h5 {[%clk 0:02:49.5]} 14. h3
{[%clk 0:03:04.2]} 14... Nbd7 {[%clk 0:02:49]} 15. a5 {[%clk 0:03:00.3]} 15...
Nf8 {[%clk 0:02:41.9]} 16. Qe2 {[%clk 0:02:56.5]} 16... a6 {[%clk 0:02:41.4]}
17. Qf3 {[%clk 0:02:55.2]} 17... N8h7 {[%clk 0:02:40.4]} 18. Qd1 {[%clk
0:02:50.4]} 18... Ng5 {[%clk 0:02:39.6]} 19. Ne2 {[%clk 0:02:49.5]} 19... Nfe4
{[%clk 0:02:34.6]} 20. d5 {[%clk 0:02:44.3]} 20... c5 {[%clk 0:02:34.6]} 21. Nf4
{[%clk 0:02:40]} 21... Rad8 {[%clk 0:02:28.1]} 22. Qc2 {[%clk 0:02:37.5]} 22...
Be5 {[%clk 0:02:26.2]} 23. Bxe5 {[%clk 0:02:31.2]} 23... Qxe5 {[%clk 0:02:26.1]}
24. Rfd1 {[%clk 0:02:29.6]} 24... Nd6 {[%clk 0:02:20.4]} 25. Nd3 {[%clk
0:02:25.2]} 25... Qf6 {[%clk 0:02:13.8]} 26. Nxc5 {[%clk 0:02:23.3]} 26... Rc8
{[%clk 0:02:13.8]} 27. Nd3 {[%clk 0:02:20.2]} 27... Nge4 {[%clk 0:02:09]} 28.
Ne1 {[%clk 0:01:56.9]} 28... Nc3 {[%clk 0:02:00]} 29. Rdc1 {[%clk 0:01:52.6]}
29... Nxd5 {[%clk 0:01:46.4]} 30. Qd2 {[%clk 0:01:44.7]} 30... Ne7 {[%clk
0:01:36.1]} 31. Nf3 {[%clk 0:01:39.3]} 31... Red8 {[%clk 0:01:32.4]} 32. Qe2
{[%clk 0:01:37.2]} 32... Ne4 {[%clk 0:01:32.4]} 33. Nd4 {[%clk 0:01:29.2]} 33...
Nc6 {[%clk 0:01:24.6]} 34. Nxc6 {[%clk 0:01:27.6]} 34... Rxc6 {[%clk 0:01:25.5]}
35. Rd1 {[%clk 0:01:20.5]} 35... Rcd6 {[%clk 0:01:22.1]} 36. Rxd6 {[%clk
0:01:19.2]} 36... Rxd6 {[%clk 0:01:23]} 37. Rc1 {[%clk 0:01:14.3]} 37... Rd2
{[%clk 0:01:21.9]} 38. Qe1 {[%clk 0:01:06.6]} 38... Rxf2 {[%clk 0:01:21.3]} 39.
Bd5 {[%clk 0:01:00.3]} 39... Rb2 {[%clk 0:01:11.3]} 40. Rc8+ {[%clk 0:00:47.2]}
40... Kh7 {[%clk 0:01:10.8]} 41. Rc7 {[%clk 0:00:47.8]} 41... Qg5 {[%clk
0:00:55.3]} 42. Rxf7+ {[%clk 0:00:44.4]} 42... Kh6 {[%clk 0:00:55.8]} 43. Bxe4
{[%clk 0:00:43.1]} 43... fxe4 {[%clk 0:00:55]} 44. g4 {[%clk 0:00:18.3]} 44...
Rxb3 {[%clk 0:00:48.6]} 45. Kf2 {[%clk 0:00:14]} 45... Rb2+ {[%clk 0:00:44.1]}
46. Kf1 {[%clk 0:00:11]} 46... Qb5+ {[%clk 0:00:41.4]} 47. Kg1 {[%clk
0:00:10.7]} 47... Rb1 {[%clk 0:00:42.1]} 48. h4 {[%clk 0:00:07.9]} 48... Rxe1+
{[%clk 0:00:40.4]} 49. Kf2 {[%clk 0:00:08.6]} 49... Qe2+ {[%clk 0:00:40.1]} 50.
Kg3 {[%clk 0:00:08.3]} 50... Rg1+ {[%clk 0:00:39.6]} 51. Kf4 {[%clk 0:00:07.8]}
51... Rxg4+ {[%clk 0:00:37]} 0-1

[Event "Early-Titled-Tuesday-Blitz-November-28-2023"]
[Site "Chess.com"]
[Date "2023.11.28"]
[Round "3"]
[White "andrzej"]
[Black "Aguiar94"]
[Result "0-1"]
[WhiteElo "2469"]
[BlackElo "2635"]
[TimeControl "180+1"]
[EndTime "8:29:08 PST"]
[Termination "Aguiar94 won on time"]

1. e4 {[%clk 0:03:00.9]} 1... c5 {[%clk 0:02:59.5]} 2. Nf3 {[%clk 0:03:00.8]}
2... e6 {[%clk 0:02:59.9]} 3. d4 {[%clk 0:03:01.2]} 3... cxd4 {[%clk 0:03:00.8]}
4. Nxd4 {[%clk 0:03:02.1]} 4... Nc6 {[%clk 0:03:00.7]} 5. Bf4 {[%clk 0:03:00.7]}
5... Nf6 {[%clk 0:02:47.6]} 6. Nb5 {[%clk 0:02:42.1]} 6... e5 {[%clk 0:02:36.5]}
7. Bg5 {[%clk 0:02:42]} 7... a6 {[%clk 0:02:35]} 8. Nd6+ {[%clk 0:02:37.7]} 8...
Bxd6 {[%clk 0:02:34.8]} 9. Qxd6 {[%clk 0:02:38.6]} 9... Nxe4 {[%clk 0:02:30.1]}
10. Bxd8 {[%clk 0:01:57.8]} 10... Nxd6 {[%clk 0:02:30]} 11. Bc7 {[%clk
0:01:54.7]} 11... Nf5 {[%clk 0:02:16.3]} 12. Bd3 {[%clk 0:01:52.1]} 12... d5
{[%clk 0:02:13]} 13. Nc3 {[%clk 0:01:45.9]} 13... e4 {[%clk 0:02:11.1]} 14. Be2
{[%clk 0:01:42]} 14... Be6 {[%clk 0:02:05.3]} 15. O-O-O {[%clk 0:01:41.7]} 15...
Rc8 {[%clk 0:01:57]} 16. Bb6 {[%clk 0:01:32.7]} 16... Nce7 {[%clk 0:01:55]} 17.
Bg4 {[%clk 0:01:17.6]} 17... Nh4 {[%clk 0:01:47]} 18. h3 {[%clk 0:00:48.6]}
18... f5 {[%clk 0:01:40.1]} 19. Bh5+ {[%clk 0:00:48.4]} 19... g6 {[%clk
0:01:40]} 20. Be2 {[%clk 0:00:48.3]} 20... Nxg2 {[%clk 0:01:38.4]} 21. Bd4
{[%clk 0:00:44.3]} 21... O-O {[%clk 0:01:38.2]} 22. h4 {[%clk 0:00:38.6]} 22...
Nf4 {[%clk 0:01:37.2]} 23. h5 {[%clk 0:00:37.5]} 23... Nxe2+ {[%clk 0:01:33.4]}
24. Nxe2 {[%clk 0:00:37.2]} 24... f4 {[%clk 0:01:32.7]} 25. Be5 {[%clk
0:00:29.4]} 25... Bg4 {[%clk 0:01:25.5]} 26. Rde1 {[%clk 0:00:22.1]} 26... Bxe2
{[%clk 0:01:22.6]} 27. Rxe2 {[%clk 0:00:23]} 27... Rf5 {[%clk 0:01:17.9]} 28.
Bd6 {[%clk 0:00:19.9]} 28... Nc6 {[%clk 0:01:16.4]} 29. hxg6 {[%clk 0:00:19.9]}
29... hxg6 {[%clk 0:01:17.3]} 30. Rh4 {[%clk 0:00:17.7]} 30... g5 {[%clk
0:01:16]} 31. Rg4 {[%clk 0:00:16.1]} 31... Kf7 {[%clk 0:01:05.6]} 32. Re1 {[%clk
0:00:15.6]} 32... Nd4 {[%clk 0:00:58.4]} 33. c3 {[%clk 0:00:10.8]} 33... Nf3
{[%clk 0:00:57.2]} 34. Rh1 {[%clk 0:00:11.2]} 34... Ke6 {[%clk 0:00:55.3]} 35.
Bb4 {[%clk 0:00:09.2]} 35... Rf6 {[%clk 0:00:53.6]} 36. Rh7 {[%clk 0:00:08.8]}
36... Kf5 {[%clk 0:00:53.3]} 37. Rg2 {[%clk 0:00:09]} 37... b6 {[%clk
0:00:51.5]} 38. Rg7 {[%clk 0:00:08.8]} 38... d4 {[%clk 0:00:44.8]} 39. Kd1
{[%clk 0:00:05.7]} 39... a5 {[%clk 0:00:44.1]} 40. Be7 {[%clk 0:00:05.2]} 40...
Rg6 {[%clk 0:00:44.6]} 41. Rxg6 {[%clk 0:00:04.1]} 41... Kxg6 {[%clk 0:00:45.5]}
42. Ba3 {[%clk 0:00:02.4]} 42... d3 {[%clk 0:00:42.4]} 43. Bd6 {[%clk
0:00:01.9]} 43... Kf5 {[%clk 0:00:42]} 44. a4 {[%clk 0:00:01.2]} 44... Rh8
{[%clk 0:00:40.8]} 0-1

[Event "Early-Titled-Tuesday-Blitz-November-28-2023"]
[Site "Chess.com"]
[Date "2023.11.28"]
[Round "3"]
[White "Manukyan_Artak"]
[Black "MelihKaanCan"]
[Result "0-1"]
[WhiteElo "2571"]
[BlackElo "2422"]
[TimeControl "180+1"]
[EndTime "8:29:09 PST"]
[Termination "MelihKaanCan won by resignation"]

1. e4 {[%clk 0:02:59.7]} 1... e5 {[%clk 0:02:55.5]} 2. Nf3 {[%clk 0:02:59.1]}
2... Nf6 {[%clk 0:02:55]} 3. Nxe5 {[%clk 0:02:58.2]} 3... d6 {[%clk 0:02:55.2]}
4. Nf3 {[%clk 0:02:58.1]} 4... Nxe4 {[%clk 0:02:55.9]} 5. Nc3 {[%clk 0:02:59]}
5... Nxc3 {[%clk 0:02:56.2]} 6. dxc3 {[%clk 0:02:59.9]} 6... Be7 {[%clk
0:02:57.1]} 7. Bf4 {[%clk 0:02:58.4]} 7... Nd7 {[%clk 0:02:56.4]} 8. Bd3 {[%clk
0:02:57.4]} 8... Nc5 {[%clk 0:02:56.8]} 9. Qd2 {[%clk 0:02:54.7]} 9... Be6
{[%clk 0:02:56.4]} 10. O-O-O {[%clk 0:02:54.2]} 10... Qd7 {[%clk 0:02:44.7]} 11.
Kb1 {[%clk 0:02:51.9]} 11... Nxd3 {[%clk 0:02:41]} 12. cxd3 {[%clk 0:02:51.7]}
12... Qa4 {[%clk 0:02:35.9]} 13. b3 {[%clk 0:02:47.7]} 13... Qa6 {[%clk
0:02:30.8]} 14. Nd4 {[%clk 0:02:42.8]} 14... O-O-O {[%clk 0:02:29.9]} 15. Rhe1
{[%clk 0:02:41.5]} 15... Bf6 {[%clk 0:02:15.9]} 16. Nxe6 {[%clk 0:02:38.9]}
16... fxe6 {[%clk 0:02:16.8]} 17. Rxe6 {[%clk 0:02:39.1]} 17... Qa5 {[%clk
0:02:17.4]} 18. Kb2 {[%clk 0:02:19.5]} 18... Qd5 {[%clk 0:02:11.5]} 19. Re4
{[%clk 0:02:15.2]} 19... Rhe8 {[%clk 0:02:10.4]} 20. Rde1 {[%clk 0:02:14]} 20...
Rxe4 {[%clk 0:02:04.6]} 21. Rxe4 {[%clk 0:02:14.9]} 21... Qc5 {[%clk 0:02:04.9]}
22. Be3 {[%clk 0:02:07.3]} 22... Qa5 {[%clk 0:01:59.1]} 23. Ra4 {[%clk
0:02:05.3]} 23... Qd5 {[%clk 0:01:54.2]} 24. Rxa7 {[%clk 0:02:00.9]} 24... Qxg2
{[%clk 0:01:53.3]} 25. Ra8+ {[%clk 0:01:59.9]} 25... Kd7 {[%clk 0:01:53.5]} 26.
Rxd8+ {[%clk 0:01:58]} 26... Kxd8 {[%clk 0:01:54.4]} 27. f4 {[%clk 0:01:48.4]}
27... Qh3 {[%clk 0:01:43.7]} 28. a4 {[%clk 0:01:36.6]} 28... h5 {[%clk
0:01:42.9]} 29. b4 {[%clk 0:01:34.1]} 29... h4 {[%clk 0:01:42.4]} 30. a5 {[%clk
0:01:31.2]} 30... Qf5 {[%clk 0:01:42.2]} 31. Kb3 {[%clk 0:01:24.9]} 31... h3
{[%clk 0:01:39.5]} 32. c4 {[%clk 0:01:19.4]} 32... Kc8 {[%clk 0:01:22.5]} 33. b5
{[%clk 0:01:17.3]} 33... Qg4 {[%clk 0:01:09.3]} 34. a6 {[%clk 0:01:15]} 34...
bxa6 {[%clk 0:01:10.2]} 35. bxa6 {[%clk 0:01:15.7]} 35... Qf3 {[%clk 0:01:10.8]}
36. a7 {[%clk 0:01:11.1]} 36... c5 {[%clk 0:01:01.7]} 37. Ka4 {[%clk 0:00:45]}
37... Qc6+ {[%clk 0:00:53.8]} 38. Kb3 {[%clk 0:00:40.6]} 38... Qb7+ {[%clk
0:00:49.4]} 39. Kc2 {[%clk 0:00:38.3]} 39... Qxa7 {[%clk 0:00:45]} 40. Kd1
{[%clk 0:00:37.3]} 40... Qa1+ {[%clk 0:00:44.9]} 41. Ke2 {[%clk 0:00:37.3]}
41... Qh1 {[%clk 0:00:42.6]} 42. Qa5 {[%clk 0:00:33.1]} 42... Qxh2+ {[%clk
0:00:41.7]} 43. Ke1 {[%clk 0:00:31.2]} 43... Qh1+ {[%clk 0:00:42]} 44. Kd2
{[%clk 0:00:31.3]} 44... Qg2+ {[%clk 0:00:39.6]} 45. Kd1 {[%clk 0:00:26.7]}
45... h2 {[%clk 0:00:34.5]} 46. Qa6+ {[%clk 0:00:25.6]} 46... Qb7 {[%clk
0:00:27.6]} 0-1

[Event "Early-Titled-Tuesday-Blitz-November-28-2023"]
[Site "Chess.com"]
[Date "2023.11.28"]
[Round "3"]
[White "Volodar_Murzin"]
[Black "WoolworthsManly"]
[Result "1-0"]
[WhiteElo "2905"]
[BlackElo "2687"]
[TimeControl "180+1"]
[EndTime "8:29:10 PST"]
[Termination "Volodar_Murzin won by resignation"]

1. Nf3 {[%clk 0:03:00.9]} 1... d5 {[%clk 0:02:54.1]} 2. g3 {[%clk 0:03:01.3]}
2... Nf6 {[%clk 0:02:54]} 3. Bg2 {[%clk 0:03:01.8]} 3... Nc6 {[%clk 0:02:53.5]}
4. O-O {[%clk 0:03:02.5]} 4... e5 {[%clk 0:02:53.8]} 5. d3 {[%clk 0:03:03.2]}
5... Be7 {[%clk 0:02:53]} 6. Nbd2 {[%clk 0:03:02.1]} 6... O-O {[%clk 0:02:52.8]}
7. e4 {[%clk 0:03:02.8]} 7... Re8 {[%clk 0:02:52]} 8. Re1 {[%clk 0:03:02.6]}
8... Bf8 {[%clk 0:02:50.9]} 9. a4 {[%clk 0:02:58.5]} 9... dxe4 {[%clk
0:02:49.3]} 10. dxe4 {[%clk 0:02:58.7]} 10... Nd4 {[%clk 0:02:46.8]} 11. c3
{[%clk 0:02:58]} 11... Nxf3+ {[%clk 0:02:46.6]} 12. Qxf3 {[%clk 0:02:58.7]}
12... Be6 {[%clk 0:02:44.1]} 13. Qe2 {[%clk 0:02:58.4]} 13... Nd7 {[%clk
0:02:36.6]} 14. Nc4 {[%clk 0:02:50.2]} 14... f6 {[%clk 0:02:28.3]} 15. Rd1
{[%clk 0:02:47.2]} 15... Qe7 {[%clk 0:02:28.4]} 16. Na5 {[%clk 0:02:40.9]} 16...
Nc5 {[%clk 0:02:16]} 17. Be3 {[%clk 0:02:37]} 17... Nb3 {[%clk 0:02:15.3]} 18.
Nxb3 {[%clk 0:02:35.6]} 18... Bxb3 {[%clk 0:02:16.2]} 19. Rd2 {[%clk 0:02:33.3]}
19... Qf7 {[%clk 0:02:06.2]} 20. a5 {[%clk 0:02:20.7]} 20... a6 {[%clk
0:02:06.4]} 21. h4 {[%clk 0:02:09.5]} 21... Rad8 {[%clk 0:02:06.1]} 22. Bf1
{[%clk 0:02:05.1]} 22... Be7 {[%clk 0:02:02]} 23. Bh3 {[%clk 0:01:47.6]} 23...
Rxd2 {[%clk 0:01:59.4]} 24. Bxd2 {[%clk 0:01:46.7]} 24... Rd8 {[%clk 0:01:56.5]}
25. Be3 {[%clk 0:01:47]} 25... Qf8 {[%clk 0:01:36.1]} 26. h5 {[%clk 0:01:35]}
26... Bc5 {[%clk 0:01:33.2]} 27. Bf5 {[%clk 0:01:33.5]} 27... Bxe3 {[%clk
0:01:31.8]} 28. Qxe3 {[%clk 0:01:34.4]} 28... Qd6 {[%clk 0:01:18.3]} 29. Kg2
{[%clk 0:01:23.6]} 29... Qd2 {[%clk 0:01:15.6]} 30. Qa7 {[%clk 0:00:52.2]} 30...
Qxb2 {[%clk 0:01:15]} 31. Qxb7 {[%clk 0:00:52.2]} 31... Qxa1 {[%clk 0:00:58]}
32. Qxb3+ {[%clk 0:00:51.6]} 32... Kh8 {[%clk 0:00:56.1]} 33. h6 {[%clk
0:00:39.9]} 33... Qc1 {[%clk 0:00:33.8]} 34. hxg7+ {[%clk 0:00:36.2]} 34... Kxg7
{[%clk 0:00:34.7]} 35. Qc4 {[%clk 0:00:32.3]} 35... Rf8 {[%clk 0:00:34.8]} 36.
Be6 {[%clk 0:00:24.1]} 36... Qa3 {[%clk 0:00:31.3]} 37. Qxc7+ {[%clk 0:00:23.2]}
37... Kh6 {[%clk 0:00:24.8]} 38. Bf5 {[%clk 0:00:22.7]} 38... Rh8 {[%clk
0:00:25]} 39. c4 {[%clk 0:00:20.7]} 39... Qf8 {[%clk 0:00:23.3]} 40. c5 {[%clk
0:00:21.2]} 40... Qd8 {[%clk 0:00:22.3]} 41. Qb6 {[%clk 0:00:18.4]} 41... Rg8
{[%clk 0:00:18.8]} 42. c6 {[%clk 0:00:16.4]} 42... Qd3 {[%clk 0:00:18.4]} 43. c7
{[%clk 0:00:14.7]} 43... Rxg3+ {[%clk 0:00:18.4]} 44. fxg3 {[%clk 0:00:15.6]}
44... Qe2+ {[%clk 0:00:18]} 45. Qf2 {[%clk 0:00:16.2]} 45... Qc4 {[%clk
0:00:17.7]} 46. c8=Q {[%clk 0:00:15.8]} 1-0

[Event "Early-Titled-Tuesday-Blitz-November-28-2023"]
[Site "Chess.com"]
[Date "2023.11.28"]
[Round "3"]
[White "AljoschaFeuerstack"]
[Black "Khromkin"]
[Result "1-0"]
[WhiteElo "2649"]
[BlackElo "2489"]
[TimeControl "180+1"]
[EndTime "8:29:13 PST"]
[Termination "AljoschaFeuerstack won on time"]

1. e4 {[%clk 0:03:00.9]} 1... c5 {[%clk 0:02:57.2]} 2. Nf3 {[%clk 0:03:00.7]}
2... Nc6 {[%clk 0:02:57.7]} 3. d3 {[%clk 0:03:00.9]} 3... g6 {[%clk 0:02:57]} 4.
g3 {[%clk 0:03:01.3]} 4... Bg7 {[%clk 0:02:57.6]} 5. Bg2 {[%clk 0:03:02]} 5...
e5 {[%clk 0:02:58]} 6. O-O {[%clk 0:03:02.2]} 6... Nge7 {[%clk 0:02:58.7]} 7. c3
{[%clk 0:02:59.2]} 7... O-O {[%clk 0:02:58.5]} 8. a3 {[%clk 0:02:54.1]} 8... d5
{[%clk 0:02:55.7]} 9. Nbd2 {[%clk 0:02:48]} 9... h6 {[%clk 0:02:55]} 10. Re1
{[%clk 0:02:33.8]} 10... Be6 {[%clk 0:02:53.7]} 11. exd5 {[%clk 0:02:01.5]}
11... Nxd5 {[%clk 0:02:53]} 12. Nc4 {[%clk 0:02:01.5]} 12... Qc7 {[%clk
0:02:52.1]} 13. Bd2 {[%clk 0:02:01]} 13... b5 {[%clk 0:02:44.4]} 14. Ne3 {[%clk
0:02:00.9]} 14... Nde7 {[%clk 0:02:45]} 15. b4 {[%clk 0:01:56.5]} 15... Rfd8
{[%clk 0:02:35.8]} 16. Qc2 {[%clk 0:01:43.5]} 16... Rac8 {[%clk 0:02:19.8]} 17.
bxc5 {[%clk 0:01:36.2]} 17... Na5 {[%clk 0:02:19.9]} 18. c4 {[%clk 0:00:53.7]}
18... bxc4 {[%clk 0:02:02.6]} 19. Nxc4 {[%clk 0:00:42.2]} 19... Nxc4 {[%clk
0:01:54.4]} 20. dxc4 {[%clk 0:00:43.1]} 20... e4 {[%clk 0:01:54.8]} 21. Qxe4
{[%clk 0:00:40.1]} 21... Bxa1 {[%clk 0:01:39.4]} 22. Rxa1 {[%clk 0:00:41]} 22...
Nf5 {[%clk 0:01:18.9]} 23. g4 {[%clk 0:00:33.9]} 23... Nh4 {[%clk 0:01:04.8]}
24. Bxh6 {[%clk 0:00:24.5]} 24... Nxf3+ {[%clk 0:00:51.1]} 25. Qxf3 {[%clk
0:00:20.6]} 25... Qe5 {[%clk 0:00:44.9]} 26. Rf1 {[%clk 0:00:19.3]} 26... Rd4
{[%clk 0:00:43]} 27. h3 {[%clk 0:00:19.2]} 27... g5 {[%clk 0:00:32.3]} 28. Qe3
{[%clk 0:00:17.7]} 28... Qxe3 {[%clk 0:00:24.6]} 29. fxe3 {[%clk 0:00:18.6]}
29... Rxc4 {[%clk 0:00:22.8]} 30. Bxg5 {[%clk 0:00:19.2]} 30... R8xc5 {[%clk
0:00:22.2]} 31. Bf6 {[%clk 0:00:19.4]} 31... Rc1 {[%clk 0:00:21.7]} 32. Bd4
{[%clk 0:00:17.8]} 32... Rxf1+ {[%clk 0:00:19.3]} 33. Bxf1 {[%clk 0:00:18.7]}
33... Rc1 {[%clk 0:00:14.7]} 34. Kf2 {[%clk 0:00:19.3]} 34... Bc4 {[%clk
0:00:14.5]} 35. Bxc4 {[%clk 0:00:19.2]} 35... Rxc4 {[%clk 0:00:14.3]} 36. Bxa7
{[%clk 0:00:20.1]} 36... Rc3 {[%clk 0:00:12.5]} 37. a4 {[%clk 0:00:19.1]} 37...
Ra3 {[%clk 0:00:12.5]} 38. Bd4 {[%clk 0:00:19.9]} 38... Rxa4 {[%clk 0:00:12.9]}
39. h4 {[%clk 0:00:20.8]} 39... Kh7 {[%clk 0:00:12.9]} 40. h5 {[%clk 0:00:20.7]}
40... Ra5 {[%clk 0:00:09.7]} 41. Kg3 {[%clk 0:00:20]} 41... Kh6 {[%clk
0:00:06.9]} 42. Kf4 {[%clk 0:00:19.4]} 1-0

[Event "Early-Titled-Tuesday-Blitz-November-28-2023"]
[Site "Chess.com"]
[Date "2023.11.28"]
[Round "3"]
[White "Statham_l3"]
[Black "giomar27"]
[Result "0-1"]
[WhiteElo "2593"]
[BlackElo "2451"]
[TimeControl "180+1"]
[EndTime "8:29:13 PST"]
[Termination "giomar27 won on time"]

1. e4 {[%clk 0:03:00.9]} 1... e5 {[%clk 0:02:58.9]} 2. Nf3 {[%clk 0:03:00.9]}
2... Nc6 {[%clk 0:02:59]} 3. Nc3 {[%clk 0:03:00.9]} 3... Nf6 {[%clk 0:02:58.7]}
4. Be2 {[%clk 0:03:00.1]} 4... d5 {[%clk 0:02:58.1]} 5. exd5 {[%clk 0:03:00.5]}
5... Nxd5 {[%clk 0:02:59]} 6. O-O {[%clk 0:03:00]} 6... Be7 {[%clk 0:02:48.5]}
7. d4 {[%clk 0:02:50.3]} 7... Nxc3 {[%clk 0:02:43.1]} 8. bxc3 {[%clk 0:02:51.1]}
8... e4 {[%clk 0:02:42.2]} 9. Nd2 {[%clk 0:02:47.1]} 9... f5 {[%clk 0:02:28.8]}
10. Bc4 {[%clk 0:01:47.2]} 10... Na5 {[%clk 0:02:21.7]} 11. Be2 {[%clk
0:00:59.4]} 11... O-O {[%clk 0:02:14.9]} 12. f3 {[%clk 0:00:56.5]} 12... exf3
{[%clk 0:01:08.6]} 13. Nxf3 {[%clk 0:00:57.3]} 13... Be6 {[%clk 0:01:07.3]} 14.
Bf4 {[%clk 0:00:49.1]} 14... Nc4 {[%clk 0:01:00.7]} 15. Re1 {[%clk 0:00:48]}
15... g5 {[%clk 0:00:56.9]} 16. Bxc4 {[%clk 0:00:29.1]} 16... Bxc4 {[%clk
0:00:56.9]} 17. Rxe7 {[%clk 0:00:18.9]} 17... Qxe7 {[%clk 0:00:54.2]} 18. Bxg5
{[%clk 0:00:18.6]} 18... Qe2 {[%clk 0:00:51.1]} 19. Qxe2 {[%clk 0:00:11.3]}
19... Bxe2 {[%clk 0:00:52]} 20. Ne5 {[%clk 0:00:11.4]} 20... Bh5 {[%clk
0:00:44.9]} 21. Rb1 {[%clk 0:00:10]} 21... b6 {[%clk 0:00:42.8]} 22. Re1 {[%clk
0:00:06.1]} 22... Rfe8 {[%clk 0:00:40.1]} 23. Re3 {[%clk 0:00:05.9]} 23... Bg6
{[%clk 0:00:38.1]} 24. Rg3 {[%clk 0:00:03.8]} 24... Re6 {[%clk 0:00:32.4]} 25.
h4 {[%clk 0:00:03.7]} 25... Kf8 {[%clk 0:00:27.7]} 26. Bf4 {[%clk 0:00:03]}
26... Rd8 {[%clk 0:00:23]} 27. Rg5 {[%clk 0:00:03]} 27... c5 {[%clk 0:00:15.2]}
28. h5 {[%clk 0:00:03.1]} 28... cxd4 {[%clk 0:00:15.5]} 29. hxg6 {[%clk
0:00:03.3]} 29... hxg6 {[%clk 0:00:15.7]} 30. Nxg6+ {[%clk 0:00:03]} 30... Ke8
{[%clk 0:00:14.6]} 31. cxd4 {[%clk 0:00:01.7]} 31... Rxd4 {[%clk 0:00:15.5]} 32.
g3 {[%clk 0:00:01]} 32... Re2 {[%clk 0:00:13.1]} 33. Kf1 {[%clk 0:00:01.4]}
33... Rxc2 {[%clk 0:00:13]} 34. Ke1 {[%clk 0:00:01.1]} 34... Rb4 {[%clk
0:00:11.2]} 0-1

[Event "Early-Titled-Tuesday-Blitz-November-28-2023"]
[Site "Chess.com"]
[Date "2023.11.28"]
[Round "3"]
[White "Aleksandar-Topalov"]
[Black "BarloNadera"]
[Result "1-0"]
[WhiteElo "2372"]
[BlackElo "2110"]
[TimeControl "180+1"]
[EndTime "8:29:13 PST"]
[Termination "Aleksandar-Topalov won on time"]

1. b3 {[%clk 0:03:00.9]} 1... a5 {[%clk 0:02:55.9]} 2. a3 {[%clk 0:03:00.5]}
2... b6 {[%clk 0:02:54.6]} 3. Bb2 {[%clk 0:03:00.2]} 3... Bb7 {[%clk 0:02:55]}
4. Nf3 {[%clk 0:03:00.3]} 4... Nf6 {[%clk 0:02:54]} 5. g3 {[%clk 0:03:00.3]}
5... g6 {[%clk 0:02:53.8]} 6. Bg2 {[%clk 0:02:59.8]} 6... Bg7 {[%clk 0:02:53.6]}
7. O-O {[%clk 0:03:00]} 7... O-O {[%clk 0:02:52.5]} 8. d3 {[%clk 0:03:00.3]}
8... c5 {[%clk 0:02:34.5]} 9. a4 {[%clk 0:02:57.7]} 9... Nc6 {[%clk 0:02:16.6]}
10. Na3 {[%clk 0:02:57]} 10... d5 {[%clk 0:02:13.4]} 11. Ne5 {[%clk 0:02:53]}
11... Nxe5 {[%clk 0:02:05.2]} 12. Bxe5 {[%clk 0:02:51.9]} 12... Qd7 {[%clk
0:02:04.7]} 13. c4 {[%clk 0:02:49.2]} 13... d4 {[%clk 0:01:54.2]} 14. Bxb7
{[%clk 0:02:43.8]} 14... Qxb7 {[%clk 0:01:53.6]} 15. Nb5 {[%clk 0:02:38.8]}
15... Qc8 {[%clk 0:01:38.8]} 16. e3 {[%clk 0:02:29.6]} 16... dxe3 {[%clk
0:01:26.5]} 17. fxe3 {[%clk 0:02:29.1]} 17... Qh3 {[%clk 0:01:04.9]} 18. Qe2
{[%clk 0:02:18.8]} 18... Rac8 {[%clk 0:01:00.7]} 19. Rad1 {[%clk 0:02:08.4]}
19... Rc6 {[%clk 0:00:59.9]} 20. Bxf6 {[%clk 0:01:50.2]} 20... Bxf6 {[%clk
0:00:56.7]} 21. d4 {[%clk 0:01:50.5]} 21... Re6 {[%clk 0:00:47.8]} 22. d5 {[%clk
0:01:45.2]} 22... Re4 {[%clk 0:00:46.1]} 23. Rf4 {[%clk 0:01:42.5]} 23... Re5
{[%clk 0:00:42.2]} 24. Qf2 {[%clk 0:01:25.9]} 24... Bg5 {[%clk 0:00:41.4]} 25.
Rf3 {[%clk 0:01:25.7]} 25... Qg4 {[%clk 0:00:37.3]} 26. Re1 {[%clk 0:01:22.5]}
26... h5 {[%clk 0:00:32.6]} 27. Nc3 {[%clk 0:01:12]} 27... h4 {[%clk 0:00:30.7]}
28. Kg2 {[%clk 0:01:01.5]} 28... h3+ {[%clk 0:00:26.3]} 29. Kg1 {[%clk
0:01:01.5]} 29... Kg7 {[%clk 0:00:25]} 30. Rf1 {[%clk 0:00:58.8]} 30... f5
{[%clk 0:00:23.3]} 31. Rf4 {[%clk 0:00:32]} 31... Qh5 {[%clk 0:00:14.1]} 32. Qf3
{[%clk 0:00:20.1]} 32... Bxf4 {[%clk 0:00:06.5]} 33. Qxh5 {[%clk 0:00:16.7]}
33... Bxe3+ {[%clk 0:00:04.1]} 34. Kh1 {[%clk 0:00:15.6]} 34... gxh5 {[%clk
0:00:04.7]} 35. Nb5 {[%clk 0:00:13.8]} 35... f4 {[%clk 0:00:02.2]} 36. Rf3
{[%clk 0:00:06.8]} 1-0